[Event "Early-Titled-Tuesday-Blitz-February-27-2024"]
[Site "Chess.com"]
[Date "2024.02.27"]
[Round "5"]
[White "Shield12"]
[Black "hurricane7791"]
[Result "1-0"]
[WhiteElo "2973"]
[BlackElo "2721"]
[TimeControl "180+1"]
[EndTime "8:55:10 PST"]
[Termination "Shield12 won by resignation"]

1. b3 {[%clk 0:03:00.9]} 1... e5 {[%clk 0:02:39.1]} 2. Bb2 {[%clk 0:03:01.8]}
2... Nc6 {[%clk 0:02:38.6]} 3. e3 {[%clk 0:03:02.3]} 3... Nf6 {[%clk 0:02:36]}
4. Bb5 {[%clk 0:03:01.6]} 4... Bd6 {[%clk 0:02:36]} 5. Na3 {[%clk 0:03:01.7]}
5... Na5 {[%clk 0:02:35.9]} 6. Be2 {[%clk 0:03:01.9]} 6... a6 {[%clk 0:02:36]}
7. c4 {[%clk 0:03:02.4]} 7... c5 {[%clk 0:02:36.3]} 8. Nc2 {[%clk 0:03:01.5]}
8... Nc6 {[%clk 0:02:36.5]} 9. Nf3 {[%clk 0:02:55.4]} 9... O-O {[%clk
0:02:36.6]} 10. d4 {[%clk 0:02:52.2]} 10... cxd4 {[%clk 0:02:36.3]} 11. exd4
{[%clk 0:02:53.1]} 11... e4 {[%clk 0:02:36.8]} 12. Ne5 {[%clk 0:02:42.9]} 12...
Re8 {[%clk 0:02:35.4]} 13. Ng4 {[%clk 0:02:42.2]} 13... Bc7 {[%clk 0:02:22.4]}
14. d5 {[%clk 0:02:38.5]} 14... Ne5 {[%clk 0:02:12.9]} 15. Nxe5 {[%clk
0:02:18.7]} 15... Bxe5 {[%clk 0:02:11.4]} 16. Bxe5 {[%clk 0:02:19.6]} 16... Rxe5
{[%clk 0:02:12]} 17. O-O {[%clk 0:02:17.6]} 17... d6 {[%clk 0:02:11.4]} 18. Ne3
{[%clk 0:02:17.5]} 18... Bd7 {[%clk 0:02:09.8]} 19. Rc1 {[%clk 0:02:16.6]} 19...
Rc8 {[%clk 0:02:10.1]} 20. b4 {[%clk 0:02:16.4]} 20... Qe7 {[%clk 0:02:01]} 21.
Qd4 {[%clk 0:02:14.9]} 21... h5 {[%clk 0:01:52.5]} 22. c5 {[%clk 0:02:13.7]}
22... Rd8 {[%clk 0:01:02.5]} 23. c6 {[%clk 0:02:09.1]} 23... Bc8 {[%clk
0:00:58.2]} 24. a4 {[%clk 0:02:06.8]} 24... h4 {[%clk 0:00:54.4]} 25. b5 {[%clk
0:02:05.6]} 25... axb5 {[%clk 0:00:54.8]} 26. axb5 {[%clk 0:02:06.5]} 26... Rg5
{[%clk 0:00:52.4]} 27. Kh1 {[%clk 0:02:04.9]} 27... Nh5 {[%clk 0:00:40.6]} 28.
Bxh5 {[%clk 0:02:00.6]} 28... Rxh5 {[%clk 0:00:40.8]} 29. Ra1 {[%clk 0:02:00.1]}
29... Re5 {[%clk 0:00:32.6]} 30. Ra8 {[%clk 0:01:57.8]} 30... h3 {[%clk
0:00:30.2]} 31. g3 {[%clk 0:01:52.6]} 31... Qf6 {[%clk 0:00:29.7]} 32. Kg1
{[%clk 0:01:52.5]} 32... Rde8 {[%clk 0:00:22.2]} 33. Qd1 {[%clk 0:01:44.4]}
33... bxc6 {[%clk 0:00:20.3]} 34. bxc6 {[%clk 0:01:42.5]} 34... Qg5 {[%clk
0:00:19.5]} 35. Qe2 {[%clk 0:01:35.3]} 35... f5 {[%clk 0:00:19.6]} 36. Nc4
{[%clk 0:01:27.4]} 36... Rxd5 {[%clk 0:00:19.8]} 37. Nb6 {[%clk 0:01:27.5]}
37... Rc5 {[%clk 0:00:15.2]} 38. Rxc8 {[%clk 0:00:54.1]} 38... Rxc8 {[%clk
0:00:14.7]} 39. Nxc8 {[%clk 0:00:55]} 39... Rxc6 {[%clk 0:00:15.3]} 40. Na7
{[%clk 0:00:55.3]} 40... Rc1 {[%clk 0:00:15.6]} 41. Nb5 {[%clk 0:00:52.1]} 41...
d5 {[%clk 0:00:13.5]} 42. Nd4 {[%clk 0:00:50.2]} 42... Rxf1+ {[%clk 0:00:11.4]}
43. Qxf1 {[%clk 0:00:51.1]} 43... Qf6 {[%clk 0:00:11.5]} 44. Qa1 {[%clk
0:00:46.8]} 44... Kh7 {[%clk 0:00:10.6]} 45. Qd1 {[%clk 0:00:44.4]} 45... Kg8
{[%clk 0:00:10]} 46. Ne2 {[%clk 0:00:40.9]} 46... Qe5 {[%clk 0:00:10.6]} 47. Qd4
{[%clk 0:00:38.6]} 47... Qxd4 {[%clk 0:00:09.3]} 48. Nxd4 {[%clk 0:00:38]} 48...
g6 {[%clk 0:00:09.9]} 49. f4 {[%clk 0:00:36]} 49... Kf7 {[%clk 0:00:06.3]} 50.
Kf2 {[%clk 0:00:35.8]} 50... Ke7 {[%clk 0:00:07]} 51. Ke3 {[%clk 0:00:21]} 51...
Kd6 {[%clk 0:00:07.6]} 52. Kd2 {[%clk 0:00:21.1]} 52... Kc5 {[%clk 0:00:07.8]}
53. Kc3 {[%clk 0:00:21.3]} 53... Kb6 {[%clk 0:00:05.9]} 54. Ne6 {[%clk
0:00:19.3]} 54... Kc6 {[%clk 0:00:04.3]} 55. Kd4 {[%clk 0:00:16.8]} 55... Kd6
{[%clk 0:00:04.7]} 56. Ng5 {[%clk 0:00:16.1]} 1-0

[Event "Early-Titled-Tuesday-Blitz-February-27-2024"]
[Site "Chess.com"]
[Date "2024.02.27"]
[Round "5"]
[White "EvgenyBurmakin"]
[Black "malakismayil"]
[Result "0-1"]
[WhiteElo "2339"]
[BlackElo "2638"]
[TimeControl "180+1"]
[EndTime "8:55:10 PST"]
[Termination "malakismayil won on time"]

1. e4 {[%clk 0:03:00.9]} 1... e5 {[%clk 0:02:50.3]} 2. Nf3 {[%clk 0:02:58.1]}
2... Nc6 {[%clk 0:02:47.5]} 3. Bb5 {[%clk 0:02:58.5]} 3... a6 {[%clk 0:02:47.1]}
4. Ba4 {[%clk 0:02:58]} 4... Nf6 {[%clk 0:02:47.4]} 5. O-O {[%clk 0:02:57.7]}
5... b5 {[%clk 0:02:48.1]} 6. Bb3 {[%clk 0:02:57.5]} 6... Be7 {[%clk 0:02:49]}
7. Re1 {[%clk 0:02:56.6]} 7... O-O {[%clk 0:02:46.5]} 8. c3 {[%clk 0:02:55.7]}
8... d6 {[%clk 0:02:45.5]} 9. h3 {[%clk 0:02:54.2]} 9... h6 {[%clk 0:02:45.4]}
10. d4 {[%clk 0:02:52.7]} 10... Re8 {[%clk 0:02:38.1]} 11. Nbd2 {[%clk
0:02:48.7]} 11... Bf8 {[%clk 0:02:35]} 12. Nf1 {[%clk 0:02:44.5]} 12... Qe7
{[%clk 0:02:33.1]} 13. Ng3 {[%clk 0:02:21.8]} 13... Na5 {[%clk 0:02:27.1]} 14.
Bc2 {[%clk 0:02:19.9]} 14... c5 {[%clk 0:02:27.2]} 15. Nf5 {[%clk 0:02:06.2]}
15... Bxf5 {[%clk 0:02:24.5]} 16. exf5 {[%clk 0:02:07.1]} 16... Qc7 {[%clk
0:02:20.8]} 17. dxe5 {[%clk 0:01:39.3]} 17... dxe5 {[%clk 0:02:21.7]} 18. Nd2
{[%clk 0:01:38.9]} 18... Rad8 {[%clk 0:02:19.7]} 19. Qf3 {[%clk 0:01:35.7]}
19... Nb7 {[%clk 0:02:05.8]} 20. a4 {[%clk 0:01:26.2]} 20... Nd6 {[%clk
0:02:03.3]} 21. axb5 {[%clk 0:01:25.7]} 21... axb5 {[%clk 0:02:04.2]} 22. Nf1
{[%clk 0:01:19.4]} 22... Nc4 {[%clk 0:01:50.6]} 23. Ng3 {[%clk 0:01:08]} 23...
Nd6 {[%clk 0:01:42.5]} 24. Nh5 {[%clk 0:01:00.7]} 24... Nxh5 {[%clk 0:01:42.4]}
25. Qxh5 {[%clk 0:01:01.3]} 25... Qe7 {[%clk 0:00:48.8]} 26. Qg4 {[%clk
0:00:42]} 26... Qf6 {[%clk 0:00:47.1]} 27. Ra6 {[%clk 0:00:38.3]} 27... Ra8
{[%clk 0:00:41.6]} 28. Rxa8 {[%clk 0:00:26.7]} 28... Rxa8 {[%clk 0:00:42.5]} 29.
Be3 {[%clk 0:00:26.7]} 29... Nc4 {[%clk 0:00:38.7]} 30. Bc1 {[%clk 0:00:23.9]}
30... Rd8 {[%clk 0:00:35.9]} 31. b3 {[%clk 0:00:21.4]} 31... Nb6 {[%clk
0:00:36]} 32. Be3 {[%clk 0:00:20.5]} 32... Nd5 {[%clk 0:00:35.4]} 33. Bd2 {[%clk
0:00:19.5]} 33... Qd6 {[%clk 0:00:16.2]} 34. Qe2 {[%clk 0:00:16.4]} 34... Nf6
{[%clk 0:00:15.3]} 35. Bc1 {[%clk 0:00:15.9]} 35... Qc6 {[%clk 0:00:14.3]} 36.
Qxe5 {[%clk 0:00:15.2]} 36... Bd6 {[%clk 0:00:14.9]} 37. Qe2 {[%clk 0:00:14.5]}
37... Re8 {[%clk 0:00:15]} 38. Qf1 {[%clk 0:00:14.4]} 38... Ra8 {[%clk
0:00:14.3]} 39. Qd3 {[%clk 0:00:11.9]} 39... Rd8 {[%clk 0:00:13.4]} 40. Qe2
{[%clk 0:00:09.9]} 40... Qc7 {[%clk 0:00:08.7]} 41. Be3 {[%clk 0:00:09.5]} 41...
Re8 {[%clk 0:00:08.5]} 42. Qxb5 {[%clk 0:00:09.3]} 42... Rb8 {[%clk 0:00:07.6]}
43. Qd3 {[%clk 0:00:08.5]} 43... Rd8 {[%clk 0:00:07.1]} 44. Qe2 {[%clk
0:00:08.3]} 44... Nd5 {[%clk 0:00:06.5]} 45. Bd2 {[%clk 0:00:07.5]} 45... Nf6
{[%clk 0:00:06]} 46. g3 {[%clk 0:00:05.8]} 46... Re8 {[%clk 0:00:04.8]} 47. Qf1
{[%clk 0:00:04.5]} 47... Rd8 {[%clk 0:00:05]} 48. Kg2 {[%clk 0:00:04.3]} 48...
Bxg3 {[%clk 0:00:04.6]} 49. fxg3 {[%clk 0:00:03.6]} 49... Rxd2+ {[%clk
0:00:04.8]} 50. Re2 {[%clk 0:00:04.2]} 50... Rd8 {[%clk 0:00:04.9]} 51. Qf3
{[%clk 0:00:03.7]} 51... Qd6 {[%clk 0:00:05.2]} 52. Qe3 {[%clk 0:00:02.3]} 52...
Qc6+ {[%clk 0:00:04.7]} 53. Qf3 {[%clk 0:00:02.4]} 53... Qd6 {[%clk 0:00:04.7]}
54. Rf2 {[%clk 0:00:02.1]} 54... Nd5 {[%clk 0:00:04.5]} 55. g4 {[%clk
0:00:01.8]} 55... Qe5 {[%clk 0:00:05]} 0-1

[Event "Early-Titled-Tuesday-Blitz-February-27-2024"]
[Site "Chess.com"]
[Date "2024.02.27"]
[Round "5"]
[White "ClauSanLuis"]
[Black "toninhojit"]
[Result "0-1"]
[WhiteElo "2247"]
[BlackElo "2470"]
[TimeControl "180+1"]
[EndTime "8:55:10 PST"]
[Termination "toninhojit won by resignation"]

1. d4 {[%clk 0:02:50.2]} 1... Nf6 {[%clk 0:02:59.8]} 2. Bg5 {[%clk 0:02:49.3]}
2... Ne4 {[%clk 0:02:57.8]} 3. Bh4 {[%clk 0:02:48.8]} 3... d5 {[%clk 0:02:56.3]}
4. f3 {[%clk 0:02:46.3]} 4... Nd6 {[%clk 0:02:56.1]} 5. Nc3 {[%clk 0:02:45.1]}
5... c6 {[%clk 0:02:52.2]} 6. e4 {[%clk 0:02:44.7]} 6... dxe4 {[%clk 0:02:52.7]}
7. fxe4 {[%clk 0:02:44.2]} 7... g6 {[%clk 0:02:52.9]} 8. Nf3 {[%clk 0:02:38.9]}
8... Bg7 {[%clk 0:02:53.3]} 9. Be2 {[%clk 0:02:35.8]} 9... O-O {[%clk
0:02:53.5]} 10. O-O {[%clk 0:02:35.1]} 10... b5 {[%clk 0:02:49.3]} 11. a3 {[%clk
0:02:34.1]} 11... Nd7 {[%clk 0:02:45.9]} 12. Qd2 {[%clk 0:02:33.9]} 12... Nb6
{[%clk 0:02:45.8]} 13. b3 {[%clk 0:02:30]} 13... Bg4 {[%clk 0:02:29.8]} 14. Rad1
{[%clk 0:02:28.6]} 14... a5 {[%clk 0:02:16.8]} 15. h3 {[%clk 0:02:28.3]} 15...
Bd7 {[%clk 0:02:10.1]} 16. e5 {[%clk 0:02:21.8]} 16... Nf5 {[%clk 0:02:09.7]}
17. Bf2 {[%clk 0:02:22.4]} 17... e6 {[%clk 0:01:58.5]} 18. Ne4 {[%clk
0:02:21.7]} 18... Nd5 {[%clk 0:01:53.6]} 19. c4 {[%clk 0:02:18.1]} 19... bxc4
{[%clk 0:01:49.1]} 20. bxc4 {[%clk 0:02:19]} 20... Nb6 {[%clk 0:01:42.5]} 21. g4
{[%clk 0:02:05]} 21... Ne7 {[%clk 0:01:40.6]} 22. Nf6+ {[%clk 0:02:04.8]} 22...
Kh8 {[%clk 0:01:38.6]} 23. Be3 {[%clk 0:01:59.2]} 23... Ng8 {[%clk 0:01:37.4]}
24. Ne4 {[%clk 0:01:55.2]} 24... Be8 {[%clk 0:01:31.3]} 25. Nd6 {[%clk
0:01:53.9]} 25... Nc8 {[%clk 0:01:30.5]} 26. c5 {[%clk 0:01:51]} 26... Nce7
{[%clk 0:01:30.9]} 27. Ng5 {[%clk 0:01:46.5]} 27... Nd5 {[%clk 0:01:29.7]} 28.
Nge4 {[%clk 0:01:40.8]} 28... f5 {[%clk 0:01:23.7]} 29. exf6 {[%clk 0:01:32.9]}
29... Ngxf6 {[%clk 0:01:23.4]} 30. Ng5 {[%clk 0:01:27.3]} 30... Qd7 {[%clk
0:01:19]} 31. Nf3 {[%clk 0:01:19.6]} 31... Nxe3 {[%clk 0:01:10.5]} 32. Qxe3
{[%clk 0:01:18.9]} 32... Nd5 {[%clk 0:01:11.4]} 33. Qe4 {[%clk 0:01:14.5]} 33...
Nc3 {[%clk 0:01:11]} 34. Qe3 {[%clk 0:01:12.3]} 34... Nxd1 {[%clk 0:01:10.7]}
35. Rxd1 {[%clk 0:01:13.2]} 35... e5 {[%clk 0:01:01.1]} 36. dxe5 {[%clk
0:01:11.7]} 36... Qe7 {[%clk 0:00:54.5]} 37. e6 {[%clk 0:00:59.9]} 37... g5
{[%clk 0:00:40.7]} 38. Qxg5 {[%clk 0:00:53.8]} 38... Bf6 {[%clk 0:00:40.8]} 39.
Qd2 {[%clk 0:00:50.9]} 39... Bg6 {[%clk 0:00:41]} 40. Bc4 {[%clk 0:00:48.7]}
40... Bg7 {[%clk 0:00:39.1]} 41. Rf1 {[%clk 0:00:41.7]} 41... Rad8 {[%clk
0:00:34.3]} 42. Qxa5 {[%clk 0:00:35.9]} 42... Rf6 {[%clk 0:00:28.4]} 43. Qe1
{[%clk 0:00:34.3]} 43... Rdf8 {[%clk 0:00:28.2]} 44. Qe2 {[%clk 0:00:31.2]}
44... Rf4 {[%clk 0:00:28.1]} 45. Ba2 {[%clk 0:00:26.7]} 45... Bd4+ {[%clk
0:00:25.1]} 46. Kg2 {[%clk 0:00:26.4]} 46... Bxc5 {[%clk 0:00:25.1]} 47. Nf7+
{[%clk 0:00:22.3]} 47... Bxf7 {[%clk 0:00:22.1]} 48. Qe5+ {[%clk 0:00:21]} 48...
Qf6 {[%clk 0:00:22.5]} 49. Qxf6+ {[%clk 0:00:21.1]} 49... Rxf6 {[%clk
0:00:22.1]} 50. exf7 {[%clk 0:00:22]} 50... Kg7 {[%clk 0:00:21.4]} 51. Rc1
{[%clk 0:00:17.8]} 51... Bxa3 {[%clk 0:00:19.9]} 52. Nh4 {[%clk 0:00:14.8]}
52... Bxc1 {[%clk 0:00:18.7]} 53. Nf5+ {[%clk 0:00:14.3]} 53... Rxf5 {[%clk
0:00:19.1]} 54. gxf5 {[%clk 0:00:12.7]} 54... Kf6 {[%clk 0:00:19.6]} 55. Bb3
{[%clk 0:00:13]} 55... Bh6 {[%clk 0:00:20]} 56. Kf3 {[%clk 0:00:13.9]} 56... Rb8
{[%clk 0:00:20.2]} 57. Kg4 {[%clk 0:00:14.5]} 57... Rxb3 {[%clk 0:00:17.6]} 58.
Kh5 {[%clk 0:00:15.4]} 58... Rxh3+ {[%clk 0:00:17.5]} 59. Kg4 {[%clk 0:00:15.1]}
59... Rh1 {[%clk 0:00:17.3]} 60. Kg3 {[%clk 0:00:05.7]} 60... Bf8 {[%clk
0:00:18.2]} 61. Kg2 {[%clk 0:00:05.3]} 61... Rh6 {[%clk 0:00:17.9]} 62. Kf2
{[%clk 0:00:04.9]} 62... Kxf7 {[%clk 0:00:18.8]} 0-1

[Event "Early-Titled-Tuesday-Blitz-February-27-2024"]
[Site "Chess.com"]
[Date "2024.02.27"]
[Round "5"]
[White "IlanSchnaider"]
[Black "Rud_Makarian"]
[Result "0-1"]
[WhiteElo "2744"]
[BlackElo "3102"]
[TimeControl "180+1"]
[EndTime "8:55:14 PST"]
[Termination "Rud_Makarian won on time"]

1. e4 {[%clk 0:03:00.9]} 1... c5 {[%clk 0:03:00.1]} 2. Nf3 {[%clk 0:03:00.6]}
2... d6 {[%clk 0:03:00.5]} 3. Bb5+ {[%clk 0:03:00]} 3... Nd7 {[%clk 0:03:00.5]}
4. a4 {[%clk 0:03:00]} 4... a6 {[%clk 0:03:00.6]} 5. Bc4 {[%clk 0:02:59.3]} 5...
Ngf6 {[%clk 0:03:00.3]} 6. Nc3 {[%clk 0:02:59.7]} 6... e6 {[%clk 0:03:00.1]} 7.
O-O {[%clk 0:02:59.4]} 7... Be7 {[%clk 0:02:55.7]} 8. Re1 {[%clk 0:02:52.3]}
8... Qc7 {[%clk 0:02:55]} 9. Ba2 {[%clk 0:02:51.8]} 9... O-O {[%clk 0:02:55.4]}
10. d4 {[%clk 0:02:50.8]} 10... cxd4 {[%clk 0:02:55.4]} 11. Qxd4 {[%clk
0:02:48.4]} 11... b6 {[%clk 0:02:52.2]} 12. Bg5 {[%clk 0:02:18.1]} 12... Bb7
{[%clk 0:02:50.8]} 13. Rad1 {[%clk 0:02:17.9]} 13... Rac8 {[%clk 0:02:46.4]} 14.
Bh4 {[%clk 0:02:12.8]} 14... Ne5 {[%clk 0:02:42.8]} 15. Nxe5 {[%clk 0:01:50.6]}
15... dxe5 {[%clk 0:02:43.7]} 16. Qd3 {[%clk 0:01:51.2]} 16... h6 {[%clk
0:02:22.6]} 17. Qh3 {[%clk 0:01:42.2]} 17... Kh7 {[%clk 0:02:11.8]} 18. Rd3
{[%clk 0:01:19]} 18... Rcd8 {[%clk 0:01:50.4]} 19. Rf3 {[%clk 0:00:50.6]} 19...
Ng8 {[%clk 0:01:43.1]} 20. Bg3 {[%clk 0:00:23.7]} 20... Bg5 {[%clk 0:01:33.1]}
21. Rd3 {[%clk 0:00:13.3]} 21... Rxd3 {[%clk 0:01:07.1]} 22. cxd3 {[%clk
0:00:14.2]} 22... Qd6 {[%clk 0:01:07.8]} 23. Bc4 {[%clk 0:00:14]} 23... Nf6
{[%clk 0:01:08.4]} 24. Bh4 {[%clk 0:00:11.1]} 24... Bxh4 {[%clk 0:01:06.4]} 25.
Qxh4 {[%clk 0:00:12]} 25... Qb4 {[%clk 0:00:51.4]} 26. Re2 {[%clk 0:00:11.6]}
26... Ra8 {[%clk 0:00:52]} 27. h3 {[%clk 0:00:07.1]} 27... Bc6 {[%clk
0:00:47.9]} 28. Qg3 {[%clk 0:00:06.7]} 28... b5 {[%clk 0:00:46.8]} 29. Ba2
{[%clk 0:00:04]} 29... Qd4 {[%clk 0:00:44.3]} 30. Rc2 {[%clk 0:00:02.3]} 30...
bxa4 {[%clk 0:00:37.2]} 31. Ne2 {[%clk 0:00:02.4]} 31... Qd6 {[%clk 0:00:37]}
32. Nc1 {[%clk 0:00:01.4]} 32... Bb5 {[%clk 0:00:35.5]} 33. Qe3 {[%clk
0:00:01.4]} 33... Rd8 {[%clk 0:00:34]} 34. Bc4 {[%clk 0:00:01.8]} 34... Nd7
{[%clk 0:00:24.9]} 35. Bxb5 {[%clk 0:00:01.8]} 35... axb5 {[%clk 0:00:25.4]} 36.
Qa7 {[%clk 0:00:02]} 36... Qb6 {[%clk 0:00:18.3]} 37. Qxb6 {[%clk 0:00:01.4]}
37... Nxb6 {[%clk 0:00:19.2]} 38. Rc6 {[%clk 0:00:01.5]} 38... Rc8 {[%clk
0:00:14]} 39. Rxb6 {[%clk 0:00:01]} 39... Rxc1+ {[%clk 0:00:13.9]} 40. Kh2
{[%clk 0:00:01.9]} 40... Rc5 {[%clk 0:00:14.4]} 41. Rb7 {[%clk 0:00:02.2]} 41...
Kg6 {[%clk 0:00:14.9]} 42. Kg3 {[%clk 0:00:02.5]} 42... Kf6 {[%clk 0:00:15.4]}
43. Kf3 {[%clk 0:00:03]} 43... h5 {[%clk 0:00:15.2]} 44. Ke3 {[%clk 0:00:03.3]}
44... h4 {[%clk 0:00:15.4]} 45. f4 {[%clk 0:00:03.2]} 45... exf4+ {[%clk
0:00:11.7]} 46. Kxf4 {[%clk 0:00:04.1]} 46... g5+ {[%clk 0:00:10.3]} 47. Ke3
{[%clk 0:00:04]} 47... Rc2 {[%clk 0:00:10.5]} 48. Rxb5 {[%clk 0:00:03.7]} 48...
Rxg2 {[%clk 0:00:11.2]} 49. Rb4 {[%clk 0:00:01.9]} 49... Rg3+ {[%clk 0:00:11.4]}
50. Kd4 {[%clk 0:00:02.4]} 50... Rxh3 {[%clk 0:00:11.9]} 51. Rxa4 {[%clk
0:00:02.9]} 51... Rh2 {[%clk 0:00:12.6]} 52. b4 {[%clk 0:00:03]} 52... g4 {[%clk
0:00:11.7]} 53. Ke3 {[%clk 0:00:01.5]} 53... h3 {[%clk 0:00:09.4]} 54. Kf4
{[%clk 0:00:01.2]} 54... Rg2 {[%clk 0:00:10.1]} 55. e5+ {[%clk 0:00:01.5]} 55...
Kg6 {[%clk 0:00:10.1]} 56. Ra1 {[%clk 0:00:01.9]} 56... h2 {[%clk 0:00:09.7]}
57. Rh1 {[%clk 0:00:01.4]} 57... g3 {[%clk 0:00:10.2]} 0-1

[Event "Early-Titled-Tuesday-Blitz-February-27-2024"]
[Site "Chess.com"]
[Date "2024.02.27"]
[Round "5"]
[White "Onischuk_V"]
[Black "Winner_7777"]
[Result "1-0"]
[WhiteElo "2790"]
[BlackElo "2549"]
[TimeControl "180+1"]
[EndTime "8:55:14 PST"]
[Termination "Onischuk_V won by resignation"]

1. e4 {[%clk 0:01:58.5]} 1... c5 {[%clk 0:02:59.8]} 2. Nf3 {[%clk 0:01:58.6]}
2... d6 {[%clk 0:03:00.5]} 3. d4 {[%clk 0:01:58.4]} 3... cxd4 {[%clk 0:03:01.3]}
4. Nxd4 {[%clk 0:01:59]} 4... Nf6 {[%clk 0:03:02]} 5. Nc3 {[%clk 0:01:59.1]}
5... a6 {[%clk 0:03:02.7]} 6. a4 {[%clk 0:01:57.4]} 6... e5 {[%clk 0:03:02.6]}
7. Nf3 {[%clk 0:01:57.6]} 7... Qc7 {[%clk 0:03:00.8]} 8. Bg5 {[%clk 0:01:56.3]}
8... Nbd7 {[%clk 0:03:00.8]} 9. Nd2 {[%clk 0:01:56.4]} 9... h6 {[%clk
0:02:15.1]} 10. Bh4 {[%clk 0:01:54]} 10... b6 {[%clk 0:02:07.1]} 11. Bc4 {[%clk
0:01:51.7]} 11... Bb7 {[%clk 0:02:04.4]} 12. Qe2 {[%clk 0:01:51.1]} 12... Be7
{[%clk 0:02:02.6]} 13. O-O {[%clk 0:01:46.3]} 13... O-O {[%clk 0:01:57.4]} 14.
Bxf6 {[%clk 0:01:38.1]} 14... Nxf6 {[%clk 0:01:56.9]} 15. Rfd1 {[%clk
0:01:38.6]} 15... Qc5 {[%clk 0:01:35.5]} 16. Bb3 {[%clk 0:01:34.5]} 16... Rac8
{[%clk 0:00:52.3]} 17. Nf1 {[%clk 0:01:32]} 17... Qb4 {[%clk 0:00:42.3]} 18. Ne3
{[%clk 0:01:12]} 18... Rxc3 {[%clk 0:00:22.3]} 19. bxc3 {[%clk 0:01:08.9]} 19...
Qxe4 {[%clk 0:00:22.8]} 20. Bc4 {[%clk 0:00:58.2]} 20... a5 {[%clk 0:00:11.8]}
21. Bd3 {[%clk 0:00:54.8]} 21... Qc6 {[%clk 0:00:11.6]} 22. Bb5 {[%clk
0:00:49.5]} 22... Qxc3 {[%clk 0:00:09.3]} 23. Nf5 {[%clk 0:00:49.7]} 23... Bd8
{[%clk 0:00:08]} 24. Nxd6 {[%clk 0:00:48.8]} 24... Bd5 {[%clk 0:00:07.8]} 25.
Qe3 {[%clk 0:00:33]} 25... Qxc2 {[%clk 0:00:06.5]} 26. Rac1 {[%clk 0:00:32.2]}
26... Qg6 {[%clk 0:00:06]} 27. Qg3 {[%clk 0:00:32.2]} 27... Be7 {[%clk
0:00:04.9]} 28. Qxg6 {[%clk 0:00:20]} 28... fxg6 {[%clk 0:00:05.8]} 29. Nc4
{[%clk 0:00:18.6]} 29... Bc5 {[%clk 0:00:05.9]} 30. Nxe5 {[%clk 0:00:10.3]}
30... Be4 {[%clk 0:00:04.8]} 31. Rf1 {[%clk 0:00:06.3]} 31... h5 {[%clk
0:00:03.1]} 32. Kh1 {[%clk 0:00:06]} 32... Ng4 {[%clk 0:00:02.7]} 33. Nxg4
{[%clk 0:00:04.8]} 33... hxg4 {[%clk 0:00:03.6]} 34. Rce1 {[%clk 0:00:02.9]}
34... Bd5 {[%clk 0:00:03.3]} 35. Kg1 {[%clk 0:00:03]} 35... Rf5 {[%clk
0:00:02.3]} 36. Re2 {[%clk 0:00:03.1]} 36... Bd4 {[%clk 0:00:01.4]} 37. Rd2
{[%clk 0:00:03.4]} 37... Bc3 {[%clk 0:00:01.4]} 38. Rxd5 {[%clk 0:00:03.7]}
38... Rxd5 {[%clk 0:00:02.1]} 39. Bc4 {[%clk 0:00:04.3]} 39... Kf8 {[%clk
0:00:02.6]} 40. Bxd5 {[%clk 0:00:04.9]} 40... Ke7 {[%clk 0:00:03.5]} 41. Rd1
{[%clk 0:00:05.4]} 41... Bb4 {[%clk 0:00:03.8]} 42. g3 {[%clk 0:00:05.8]} 42...
Kf6 {[%clk 0:00:04.3]} 43. Bc4 {[%clk 0:00:06.4]} 43... Ke5 {[%clk 0:00:05.2]}
44. Bb5 {[%clk 0:00:07]} 44... Bc5 {[%clk 0:00:04.8]} 45. Kg2 {[%clk 0:00:07.6]}
45... Ke4 {[%clk 0:00:05.2]} 46. Rd7 {[%clk 0:00:07.7]} 46... Bd4 {[%clk
0:00:03.4]} 47. Rb7 {[%clk 0:00:08.4]} 47... Kd5 {[%clk 0:00:02.9]} 48. Re7
{[%clk 0:00:08.6]} 48... Kc5 {[%clk 0:00:02.4]} 49. Rd7 {[%clk 0:00:09]} 49...
Bf6 {[%clk 0:00:02.6]} 50. Rf7 {[%clk 0:00:08.6]} 50... Kd6 {[%clk 0:00:02.3]}
51. h3 {[%clk 0:00:08.8]} 51... gxh3+ {[%clk 0:00:01.7]} 52. Kxh3 {[%clk
0:00:09.1]} 52... Ke6 {[%clk 0:00:02.2]} 53. Rb7 {[%clk 0:00:09.5]} 53... Bd4
{[%clk 0:00:01.4]} 54. f4 {[%clk 0:00:10.2]} 54... Kf6 {[%clk 0:00:01.5]} 55.
Kg4 {[%clk 0:00:10.7]} 55... Bc5 {[%clk 0:00:01.9]} 56. Bc4 {[%clk 0:00:10.7]}
1-0